fUSD/lending_fUSD_20260106
["ID","MTS","AMOUNT","RATE_DAILY","PERIOD"]
[400589908,1767735058518,-151.0,0.00043488,120]
[400589909,1767735058527,-151.0,0.00043488,120]
[400589910,1767735058536,-151.0,0.00043488,120]
[400589911,1767735058545,-151.0,0.00043488,120]
[400589912,1767735058555,-151.0,0.00043488,120]
[400589913,1767735058564,-151.0,0.00043488,120]
[400589914,1767735058574,-151.0,0.00043488,120]
[400589915,1767735058583,-151.0,0.00043488,120]
[400589916,1767735058592,-151.0,0.00043488,120]
[400589917,1767735058601,-250.397616,0.00043488,120]
[400589918,1767735058611,-151.0,0.00043488,120]
[400589919,1767735058621,-151.0,0.00043488,120]
[400589920,1767735058630,-151.0,0.00043488,120]
[400589921,1767735058639,-151.0,0.00043488,120]
[400589922,1767735058651,-151.0,0.00043488,120]
[400589923,1767735058662,-167.374059,0.00043488,120]
[400589924,1767735058672,-330.732476,0.00043488,120]
[400589925,1767735058682,-330.732476,0.00043488,120]
[400589926,1767735058693,-330.732476,0.00043488,120]
[400589927,1767735058702,-330.732476,0.00043488,120]
[400589928,1767735058712,-330.732476,0.00043488,120]
[400589929,1767735058722,-330.732476,0.00043488,120]
[400589930,1767735058731,-330.732476,0.00043488,120]
[400589931,1767735058740,-330.732476,0.00043488,120]
[400589932,1767735058749,-330.732476,0.00043488,120]
[400589933,1767735058758,-330.732476,0.00043488,120]
[400589934,1767735058939,-330.732476,0.00043488,120]
[400589935,1767735058949,-330.732476,0.00043488,120]
[400589936,1767735058959,-330.732476,0.00043488,120]
[400589937,1767735058968,-330.732476,0.00043488,120]
[400589938,1767735058977,-330.732476,0.00043488,120]
[400589940,1767735058987,-330.732476,0.00043488,120]
[400589941,1767735058996,-154.66916,0.00043488,10]
[400589942,1767735059006,-176.43335,0.00043488,28]
[400589943,1767735059015,-176.43335,0.00043488,28]
[400589944,1767735059024,-176.43335,0.00043488,28]
[400589945,1767735059034,-176.43335,0.00043488,28]
[400589946,1767735059043,-176.43335,0.00043488,28]
[400589947,1767735059053,-176.43335,0.00043488,28]
[400589948,1767735059063,-176.43335,0.00043488,28]
[400589949,1767735059073,-176.43335,0.00043488,28]
[400589950,1767735059081,-176.43335,0.00043488,28]
[400589951,1767735059091,-176.43335,0.00043488,28]
[400589952,1767735059100,-176.43335,0.00043488,28]
[400589953,1767735059110,-176.43335,0.00043488,28]
[400589954,1767735059120,-176.43335,0.00043488,28]
[400589955,1767735059129,-176.43335,0.00043488,28]
[400589956,1767735059139,-176.43335,0.00043488,28]
[400589957,1767735059148,-176.433358,0.00043488,28]
[400589958,1767735059158,-151.748266,0.00043488,5]
[400589959,1767735059168,-156.715141,0.00043488,120]
[400589960,1767735059178,-156.715141,0.00043488,120]
[400589961,1767735059187,-156.715141,0.00043488,120]
[400589962,1767735059196,-151.0,0.00043488,120]
[400589963,1767735059206,-156.715141,0.00043488,120]
[400589964,1767735059215,-156.715141,0.00043488,120]
[400589965,1767735059225,-156.715141,0.00043488,120]
[400589966,1767735059234,-156.715141,0.00043488,120]
[400589967,1767735059243,-156.715141,0.00043488,120]
[400589968,1767735059252,-156.715141,0.00043488,120]
[400589969,1767735059262,-156.715141,0.00043488,120]
[400589970,1767735059271,-156.715141,0.00043488,120]
[400589971,1767735059281,-156.715141,0.00043488,120]
[400589972,1767735059290,-156.715141,0.00043488,120]
[400589973,1767735059300,-156.715141,0.00043488,120]
[400589974,1767735059309,-156.715141,0.00043488,120]
[400589975,1767735059318,-156.715137,0.00043488,120]
[400589976,1767735059327,-151.0,0.00043488,120]
[400589977,1767735059336,-151.0,0.00043488,120]
[400589978,1767735059345,-151.0,0.00043488,120]
[400589979,1767735059354,-151.0,0.00043488,120]
[400589980,1767735059363,-151.0,0.00043488,120]
[400589981,1767735059372,-206.523687,0.00043488,120]
[400589982,1767735059381,-151.0,0.00043488,120]
[400589983,1767735059390,-151.0,0.00043488,120]
[400589984,1767735059399,-151.0,0.00043488,120]
[400589985,1767735059409,-151.0,0.00043488,120]
[400589986,1767735059419,-2540.568595,0.00043488,120]
[400589987,1767735059428,-2540.568595,0.00043488,120]
[400589988,1767735059438,-2540.568595,0.00043488,120]
[400589989,1767735059448,-2540.568595,0.00043488,120]
[400589990,1767735059457,-2540.568595,0.00043488,120]
[400589991,1767735059466,-2540.568595,0.00043488,120]
[400589992,1767735059476,-2540.568595,0.00043488,120]
[400589993,1767735059485,-2540.568595,0.00043488,120]
[400589994,1767735059494,-2540.568595,0.00043488,120]
[400589995,1767735059503,-2540.568595,0.00043488,120]
[400589996,1767735059512,-2540.568595,0.00043488,120]
[400589997,1767735059523,-2540.568599,0.00043488,120]
[400589998,1767735059532,-151.0,0.00043488,120]
[400589999,1767735059542,-151.0,0.00043488,120]
[400590000,1767735059552,-151.0,0.00043488,120]
[400590001,1767735059561,-151.0,0.00043488,120]
[400590002,1767735059570,-158.915095,0.00043488,120]
[400590003,1767735059580,-190.911871,0.00043488,120]
[400590004,1767735059589,-190.911871,0.00043488,120]
[400590005,1767735059599,-190.911871,0.00043488,120]
[400590006,1767735059608,-190.911871,0.00043488,120]
[400590007,1767735059618,-190.911871,0.00043488,120]
[400590008,1767735059631,-190.911871,0.00043488,120]
[400590009,1767735059651,-190.911871,0.00043488,120]
[400590010,1767735059664,-190.911871,0.00043488,120]
[400590011,1767735059673,-190.911871,0.00043488,120]
[400590012,1767735059683,-190.911871,0.00043488,120]
[400590013,1767735059692,-190.911871,0.00043488,120]
[400590014,1767735059712,-190.911875,0.00043488,120]
[400590015,1767735059733,-151.0,0.00043488,120]
[400590016,1767735059747,-151.0,0.00043488,120]
[400590017,1767735059757,-151.0,0.00043488,120]
[400590018,1767735059766,-151.0,0.00043488,120]
[400590019,1767735059775,-265.95046,0.00043488,120]
[400590020,1767735059784,-151.0,0.00043488,120]
[400590021,1767735059793,-151.0,0.00043488,120]
[400590022,1767735059802,-151.0,0.00043488,120]
[400590023,1767735059812,-151.0,0.00043488,120]
[400590024,1767735059821,-151.0,0.00043488,120]
[400590025,1767735059830,-151.0,0.00043488,120]
[400590026,1767735059839,-151.0,0.00043488,120]
[400590027,1767735059849,-151.0,0.00043488,120]
[400590028,1767735059858,-151.0,0.00043488,120]
[400590029,1767735059867,-151.0,0.00043488,120]
[400590030,1767735059876,-271.216334,0.00043488,120]
[400590031,1767735059885,-151.0,0.00043488,120]
[400590032,1767735059894,-151.0,0.00043488,120]
[400590033,1767735059903,-151.0,0.00043488,120]
[400590034,1767735059912,-151.0,0.00043488,120]
[400590035,1767735059921,-151.0,0.00043488,120]
[400590036,1767735059931,-151.0,0.00043488,120]
[400590037,1767735059940,-151.0,0.00043488,7]
[400590038,1767735059948,-151.0,0.00043488,120]
[400590039,1767735059957,-151.0,0.00043488,7]
[400590040,1767735059966,-151.0,0.00043488,7]
[400590041,1767735059975,-151.0,0.00043488,7]
[400590042,1767735059983,-151.0,0.00043488,7]
[400590043,1767735059992,-151.0,0.00043488,7]
[400590044,1767735060002,-151.0,0.00043488,7]
[400590045,1767735060011,-151.0,0.00043488,7]
[400590046,1767735060021,-151.0,0.00043488,7]
[400590047,1767735060030,-224.698206,0.00043488,120]
[400590048,1767735060039,-1357.489424,0.00043488,120]
[400590049,1767735060049,-1357.489424,0.00043488,120]
[400590050,1767735060058,-1357.489424,0.00043488,120]
[400590051,1767735060068,-1357.489424,0.00043488,120]
[400590052,1767735060078,-151.0,0.00043488,120]
[400590053,1767735060088,-151.0,0.00043488,120]
[400590054,1767735060097,-1357.489424,0.00043488,120]
[400590055,1767735060106,-1357.489424,0.00043488,120]
[400590056,1767735060116,-1357.489424,0.00043488,120]
[400590057,1767735060125,-1357.48942312,0.00043488,120]
[400590058,1767735060135,-232.966659,0.00043488,120]
[400590059,1767735060144,-232.966659,0.00043488,120]
[400590060,1767735060153,-232.966659,0.00043488,120]
[400590061,1767735060163,-232.966659,0.00043488,120]
[400590062,1767735060173,-232.966659,0.00043488,120]
[400590063,1767735060182,-232.966659,0.00043488,120]
[400590064,1767735060191,-270.493476,0.00043488,120]
[400590065,1767735060200,-232.966659,0.00043488,120]
[400590066,1767735060210,-232.966651,0.00043488,120]
[400590067,1767735060219,-151.0,0.00043488,120]
[400590068,1767735060229,-298.048454,0.00043488,120]
[400590069,1767735060239,-151.0,0.00043488,120]
[400590070,1767735060250,-321.09479,0.00043488,120]
[400590071,1767735060260,-151.0,0.00043488,120]
[400590072,1767735060269,-321.09479,0.00043488,120]
[400590073,1767735060279,-321.09479,0.00043488,120]
[400590074,1767735060288,-321.09479,0.00043488,120]
[400590075,1767735060298,-321.09479,0.00043488,120]
[400590076,1767735060308,-321.09479,0.00043488,120]
[400590077,1767735060318,-321.09479,0.00043488,120]
[400590078,1767735060327,-151.0,0.00043488,120]
[400590079,1767735060336,-151.0,0.00043488,120]
[400590080,1767735060346,-151.0,0.00043488,120]
[400590081,1767735060354,-321.094781,0.00043488,120]
[400590082,1767735060363,-151.0,0.00043488,120]
[400590083,1767735060372,-193.150653,0.00043488,120]
[400590084,1767735060382,-204.697972,0.00043488,120]
[400590085,1767735060391,-151.0,0.00043488,120]
[400590086,1767735060399,-151.0,0.00043488,120]
[400590087,1767735060408,-210.903652,0.00043488,120]
[400590088,1767735060418,-151.0,0.00043488,120]
[400590089,1767735060428,-151.0,0.00043488,120]
[400590090,1767735060437,-776489.60036129,0.00043488,7]
[400590091,1767735060826,-847.77247925,0.00043488,7]
[400590092,1767735060837,-2708.90972266,0.00043488,7]
[400590093,1767735060849,-398.96744335,0.00043488,7]
[400590094,1767735062729,-614.0,0.00028365,2]
[400590095,1767735062739,-614.0,0.00031365,2]
[400590096,1767735062748,-151.0,0.00031507,31]
[400590097,1767735062757,-398.86540225,0.0003962,2]
[400590098,1767735062767,-151.0,0.000399,120]
[400590099,1767735062777,-661.18,0.00042521,30]
[400590100,1767735062786,-178.99,0.00042658,30]
[400590101,1767735062796,-171.25,0.00042658,30]
[400590102,1767735062805,-466.43,0.00042658,30]
[400590103,1767735062814,-151.0,0.000432,120]
[400590104,1767735062823,-1570505.86833406,0.00043488,7]
[400590105,1767735062838,-1720.1510389,0.00043488,7]
[400590106,1767735062880,-258.2,0.00042521,30]
[400590107,1767735062891,-224.31,0.00042521,30]
[400590108,1767735062901,-127.0,0.00043488,120]
[400590109,1767735063160,-151.0,0.00031507,31]
[400590110,1767735063170,-614.0,0.00034365,2]
[400590111,1767735063179,-24.0,0.00043488,120]
[400590112,1767735063188,-87.582685,0.00043488,120]
[400590113,1767735063604,-613.0,0.00037365,2]
[400590114,1767735063613,-151.0,0.000399,120]
[400590115,1767735063624,-151.0,0.000432,120]
[400590116,1767735063634,-63.417315,0.00043488,120]
[400590117,1767735063643,-412544.05852118,0.00043488,7]
[400590118,1767735063657,-74255.07093002,0.00043488,7]
[400590119,1767735063670,-1872.30532476,0.00043488,7]
[400590120,1767735063702,-940.00210314,0.00043488,7]
[400590121,1767735063714,-289.64789686,0.00043488,7]
[400590123,1767735066059,361.82992148,0.00027798,120]
[400590128,1767735074545,640.35101974,0.00027798,120]
[400590137,1767735124287,-1313.521,0.00017541,2]
[400590138,1767735124311,-163.17,0.00017541,2]
[400590139,1767735124334,-818.76,0.00017889,3]
[400590140,1767735124357,-354.35076502,0.00017894,2]
[400590141,1767735144078,-1000000.0,0.00017899,2]
[400590142,1767735144101,-1000.0,0.000179,2]
[400590143,1767735144126,-31012.8867,0.000179,2]
[400590144,1767735144149,-640.31028063,0.00017973,2]
[400590145,1767735144173,-297.48088136,0.00017973,2]
[400590146,1767735144197,-500.0,0.00017973,2]
[400590147,1767735144399,-500.0,0.00017999,2]
[400590148,1767735144430,-500.0,0.00017999,2]
[400590149,1767735144456,-500.0,0.00017999,2]
[400590150,1767735144480,-500.0,0.00017999,2]
[400590151,1767735144508,-500.0,0.00017999,2]
[400590152,1767735144535,-500.0,0.00017999,2]
[400590153,1767735144560,-220.04059694,0.00017999,2]
[400590154,1767735144585,-500.0,0.00017999,2]
[400590155,1767735144610,-500.0,0.00017999,2]
[400590156,1767735144635,-500.0,0.00017999,2]
[400590157,1767735144662,-500.0,0.00017999,2]
[400590158,1767735144685,-522.97060877,0.00017999,2]
[400590159,1767735144712,-500.0,0.00017999,2]
[400590160,1767735144739,-500.0,0.00017999,2]
[400590161,1767735144763,-516.7113913,0.00017999,2]
[400590162,1767735144792,-919.82310708,0.00017999,2]
[400590163,1767735144822,-919.82310708,0.00017999,2]
[400590164,1767735144852,-919.82310708,0.00017999,2]
[400590165,1767735144880,-919.82310708,0.00017999,2]
[400590166,1767735144907,-919.82310708,0.00017999,2]
[400590167,1767735144935,-919.82310708,0.00017999,2]
[400590168,1767735144962,-919.82310708,0.00017999,2]
[400590169,1767735144989,-919.82310708,0.00017999,2]
[400590170,1767735145016,-919.82310708,0.00017999,2]
[400590171,1767735145041,-919.82310708,0.00017999,2]
[400590172,1767735145068,-919.82310708,0.00017999,2]
[400590173,1767735145094,-919.82310708,0.00017999,2]
[400590174,1767735145120,-919.82310708,0.00017999,2]
[400590175,1767735145145,-919.82310708,0.00017999,2]
[400590176,1767735145168,-500.0,0.00017999,2]
[400590177,1767735145193,-919.82310708,0.00017999,2]
[400590178,1767735145215,-500.0,0.00017999,2]
[400590179,1767735145237,-509.60858331,0.00017999,2]
[400590180,1767735145261,-306.87402229,0.00017999,2]
[400590181,1767735145287,-315.37974048,0.00017999,2]
[400590182,1767735145309,-439.9968502,0.00017999,2]
[400590183,1767735145336,-919.82310706,0.00017999,2]
[400590186,1767735169766,236.4778,0.00017799,2]
[400590187,1767735177682,205.65100729,0.000178,2]
[400590188,1767735187577,500.0,0.00017789,2]
[400590189,1767735188498,1560.983298,7.945e-05,2]
[400590198,1767735202950,138768.0595993,0.00017976,2]
[400590199,1767735207981,1000000.0,0.00017799,2]
[400590200,1767735224186,1000.0,0.00017799,2]
[400590201,1767735242439,1270.7899,0.00017799,2]
[400590202,1767735250655,500.0,0.00017973,2]
[400590208,1767735311170,500.0,0.00027798,120]
[400590213,1767735325459,6269.9376992,0.00017976,2]
[400590229,1767735357455,1000000.0,0.00017799,2]
[400590230,1767735366068,500.0,0.00017973,2]
[400590231,1767735369176,5057.1702918,0.00017976,2]
[400590232,1767735370589,500.0,0.00017973,2]
[400590233,1767735373807,1000.0,0.00017799,2]
[400590239,1767735425505,500.0,0.00017973,2]
[400590255,1767735486113,500.0,0.00017973,2]
[400590289,1767735626418,500.0,0.00032441,120]
[400590291,1767735728882,500.0,0.00017973,2]
[400590293,1767735844811,403.76,9.609e-05,2]
[400590294,1767735845006,403.76,0.00010114,2]
[400590295,1767735845200,403.76,0.0001062,2]
[400590296,1767735845420,403.76,0.00011126,2]
[400590297,1767735845773,403.76,0.00011632,2]
[400590298,1767735845948,403.76,0.00012137,2]
[400590299,1767735846128,403.76,0.00012643,2]
[400590300,1767735846361,403.76,0.00013149,2]
[400590301,1767735846543,403.76,0.00013654,2]
[400590302,1767735846728,403.76,0.0001416,2]
[400590303,1767735847231,403.76,0.00014666,2]
[400590304,1767735847422,403.76,0.00015172,2]
[400590305,1767735847538,403.76,0.00015677,2]
[400590306,1767735847712,403.76,0.00016183,2]
[400590307,1767735847902,403.76,0.00016689,2]
[400590308,1767735848055,403.76,0.00017195,2]
[400590309,1767735848193,403.76,0.000177,2]
[400590310,1767735906702,563.86245197,0.00017973,2]
[400590314,1767736046125,-205.69078491,0.00018206,2]
[400590315,1767736086716,500.0,0.00017973,2]
[400590323,1767736204530,500.0,0.00017973,2]
[400590324,1767736221123,500.0,0.00032441,120]
[400590327,1767736231641,-198.06921509,0.00018206,2]
[400590328,1767736231651,-250.0,0.00018265,2]
[400590329,1767736231660,-151.0,0.00018398,2]
[400590330,1767736231670,-151.0,0.00018398,2]
[400590331,1767736231680,-151.0,0.00018405,2]
[400590332,1767736231689,-151.0,0.00018405,2]
[400590333,1767736231699,-151.0,0.00018417,2]
[400590334,1767736231709,-151.0,0.00018417,2]
[400590335,1767736231719,-186.42024009,0.00018421,2]
[400590336,1767736231729,-501.48054044,0.00018521,2]
[400590337,1767736231738,-1000.0,0.00018521,2]
[400590338,1767736231748,-1000.0,0.00018525,2]
[400590339,1767736231758,-300.0,0.00018681,2]
[400590340,1767736231767,-1200.0,0.00018681,2]
[400590341,1767736231776,-300.0,0.00018681,2]
[400590342,1767736231786,-2643.34140904,0.00018682,2]
[400590343,1767736231798,-8728.34859096,0.00018682,2]
[400590344,1767736231807,-403.76,0.00018712,2]
[400590345,1767736231817,-6371.05312878,0.00018796,2]
[400590346,1767736231827,-416.0,0.00018805,2]
[400590347,1767736231836,-500.0,0.00018806,2]
[400590348,1767736231846,-510.914429,0.00018806,2]
[400590349,1767736231855,-500.0,0.00018806,2]
[400590350,1767736231865,-500.0,0.00018806,2]
[400590351,1767736231874,-500.0,0.00018806,2]
[400590352,1767736231884,-500.0,0.00018806,2]
[400590353,1767736231893,-500.0,0.00018806,2]
[400590354,1767736231903,-500.0,0.00018806,2]
[400590355,1767736231913,-500.0,0.00018806,2]
[400590356,1767736231922,-172.20960609,0.00018806,2]
[400590357,1767736231932,-9999.99,0.00018806,2]
[400590358,1767736231944,-1212.07,0.00018806,2]
[400590359,1767736231954,-150.99,0.00018806,2]
[400590360,1767736231964,-150.99,0.00018806,2]
[400590361,1767736231974,-1195.8,0.00018806,2]
[400590362,1767736231983,-500.0,0.00018806,2]
[400590363,1767736231993,-516.50114519,0.00018806,2]
[400590364,1767736232003,-500.0,0.00018806,2]
[400590365,1767736232012,-500.0,0.00018806,2]
[400590366,1767736232021,-500.0,0.00018806,2]
[400590367,1767736232031,-500.0,0.00018806,2]
[400590368,1767736232041,-500.0,0.00018806,2]
[400590369,1767736232050,-500.0,0.00018806,2]
[400590370,1767736232059,-500.0,0.00018806,2]
[400590371,1767736232069,-500.0,0.00018806,2]
[400590372,1767736232078,-500.0,0.00018806,2]
[400590373,1767736232087,-500.0,0.00018806,2]
[400590374,1767736232096,-506.98336707,0.00018806,2]
[400590375,1767736232105,-500.0,0.00018806,2]
[400590376,1767736232114,-500.0,0.00018806,2]
[400590377,1767736232124,-500.0,0.00018806,2]
[400590378,1767736232133,-500.0,0.00018806,2]
[400590379,1767736232143,-500.0,0.00018806,2]
[400590380,1767736232152,-478.33803571,0.00018806,2]
[400590381,1767736232161,-500.0,0.00018806,2]
[400590382,1767736232171,-550.60903699,0.00018806,2]
[400590383,1767736232181,-837.97,0.00018806,2]
[400590384,1767736232190,-500.0,0.00018806,2]
[400590385,1767736232199,-500.0,0.00018806,2]
[400590386,1767736232209,-500.0,0.00018806,2]
[400590387,1767736232218,-500.0,0.00018806,2]
[400590388,1767736232228,-554.99,0.00018866,2]
[400590389,1767736232237,-500.0,0.00019068,2]
[400590390,1767736232246,-837.97,0.0001908,2]
[400590391,1767736232256,-403.76,0.00019217,2]
[400590392,1767736232265,-163.41,0.00019276,2]
[400590393,1767736232275,-837.97,0.00019354,2]
[400590394,1767736232284,-573.93093042,0.00019442,2]
[400590395,1767736232294,-3546.96,0.00019472,2]
[400590396,1767736232303,-186.42024008,0.00019473,2]
[400590397,1767736232312,-4349.11421024,0.00019542,2]
[400590398,1767736232322,-554.99,0.00019574,2]
[400590399,1767736232331,-837.97,0.00019628,2]
[400590400,1767736232340,-837.97,0.00019902,2]
[400590401,1767736232350,-1488.657,0.00019972,2]
[400590402,1767736232359,-163.17,0.00019972,2]
[400590403,1767736232370,-500.0,0.00019973,2]
[400590404,1767736232379,-500.0,0.00019973,2]
[400590405,1767736232388,-500.0,0.00019973,2]
[400590406,1767736232397,-520.78153247,0.00019973,2]
[400590407,1767736232406,-278.63852243,0.00019973,2]
[400590408,1767736232416,-500.0,0.00019973,2]
[400590409,1767736232426,-500.0,0.00019973,2]
[400590410,1767736232435,-162.42481465,0.00019973,2]
[400590411,1767736232445,-217.41815935,0.00019973,2]
[400590412,1767736232454,-500.0,0.00019973,2]
[400590413,1767736232468,-500.0,0.00019973,2]
[400590414,1767736232478,-500.0,0.00019973,2]
[400590415,1767736232487,-500.0,0.00019973,2]
[400590416,1767736232496,-500.0,0.00019973,2]
[400590417,1767736232506,-500.0,0.00019973,2]
[400590418,1767736232515,-500.0,0.00019973,2]
[400590419,1767736232524,-500.0,0.00019973,2]
[400590420,1767736232534,-478.24155127,0.00019973,2]
[400590421,1767736232543,-500.0,0.00019973,2]
[400590422,1767736232552,-500.0,0.00019973,2]
[400590423,1767736232561,-500.0,0.00019973,2]
[400590424,1767736232570,-500.0,0.00019973,2]
[400590425,1767736232580,-500.0,0.00019973,2]
[400590426,1767736232589,-600.0,0.00020027,2]
[400590427,1767736232598,-250.0,0.00020027,2]
[400590428,1767736232607,-374.62342157,0.00020074,2]
[400590429,1767736232617,-1707.79145301,0.00020074,2]
[400590430,1767736232627,-477.8249853,0.00020074,2]
[400590431,1767736232636,-11495.57013772,0.00020074,2]
[400590432,1767736232646,-9999.99,0.00020145,2]
[400590433,1767736232655,-163.18531183,0.00020173,2]
[400590434,1767736232665,-468.10184954,0.00020173,2]
[400590435,1767736232674,-366.94677964,0.00020173,2]
[400590436,1767736232683,-500.0,0.00020173,2]
[400590437,1767736232693,-561.69797391,0.00020173,2]
[400590438,1767736232702,-500.65208346,0.00020173,2]
[400590439,1767736232712,-580.00451077,0.00020173,2]
[400590440,1767736232722,-177.67129467,0.00020173,2]
[400590441,1767736232731,-500.0,0.00020173,2]
[400590442,1767736232927,-500.0,0.00020173,2]
[400590443,1767736232939,-471.71697133,0.00020173,2]
[400590444,1767736232951,-163.52410792,0.00020173,2]
[400590445,1767736232960,-167.73428703,0.00020173,2]
[400590446,1767736232970,-275.61525253,0.00020173,2]
[400590447,1767736232981,-102713.5720384,0.00020174,2]
[400590448,1767736233368,-29961.29927217,0.00020174,2]
[400590449,1767736233452,-18716.88241579,0.00020174,2]
[400590450,1767736233614,-1446.7295,0.00020174,2]
[400590451,1767736233626,-99771.63244038,0.00020174,2]
[400590496,1767736237889,-151.0,0.00018418,2]
[400590497,1767736237899,-151.0,0.00018418,2]
[400590498,1767736237909,-44274.95963603,0.00020174,2]
[400590499,1767736237923,-1289.04650006,0.00020174,2]
[400590500,1767736237937,-1063.02603655,0.00020174,2]
[400590501,1767736237953,-1847.70646854,0.00020174,2]
[400590502,1767736237967,-4849.19131332,0.00020174,2]
[400590503,1767736238002,-694065.95437876,0.00020174,2]
[400590504,1767736238012,-161.92795047,0.00020174,2]
[400590505,1767736238024,-837.97,0.00020176,2]
[400590506,1767736238033,-554.99,0.00020281,2]
[400590507,1767736238043,-420.0,0.00020369,2]
[400590508,1767736238052,-837.97,0.0002045,2]
[400590509,1767736238062,-1680.0,0.00020468,2]
[400590511,1767736238072,-372.49405725,0.00020521,2]
[400590513,1767736238081,-1000.0,0.00020521,2]
[400590514,1767736238091,-700.0,0.00020521,2]
[400590515,1767736238100,-554.45007798,0.00020521,2]
[400590516,1767736238110,-1000.0,0.00020521,2]
[400590517,1767736238119,-2051.8,0.00020624,2]
[400590518,1767736238129,-837.98,0.00020724,2]
[400590519,1767736238139,-1000.0,0.00020841,2]
[400590520,1767736238149,-554.99,0.00020988,2]
[400590521,1767736238158,-1000.0,0.00021066,2]
[400590522,1767736238167,-503.85283249,0.00021068,2]
[400590523,1767736238176,-1500.0,0.00021068,2]
[400590524,1767736238186,-6269.9376992,0.00021111,2]
[400590525,1767736238195,-5057.1702918,0.00021134,2]
[400590526,1767736238205,-633.38001449,0.00021141,2]
[400590527,1767736238215,-505.45524994,0.00021156,2]
[400590528,1767736238224,-138768.0595993,0.00021166,2]
[400590529,1767736238233,-163.41,0.00021204,2]
[400590530,1767736238242,-501.29131145,0.00021616,2]
[400590531,1767736238251,-554.99,0.00021696,2]
[400590558,1767736238512,-5000.0,0.00021918,2]
[400590560,1767736238524,-500.0,0.00021918,2]
[400590562,1767736238533,-500.0,0.00021918,2]
[400590564,1767736238543,-464.12885935,0.00021918,2]
[400590566,1767736238552,-3907.34,0.00022,7]
[400590568,1767736238561,-491.0,0.0002221,2]
[400590570,1767736238570,-2173.0,0.00022427,2]
[400590572,1767736238579,-1707.79145292,0.00022663,2]
[400590574,1767736238588,-11495.57013769,0.00022663,2]
[400590576,1767736238597,-2051.8,0.00022703,2]
[400590578,1767736238606,-163.41,0.00023132,2]
[400590580,1767736238616,-1000.0,0.00023157,2]
[400590582,1767736238625,-477.82498524,0.00023402,2]
[400590584,1767736238634,-154.98,0.00023775,2]
[400590586,1767736238643,-374.62342154,0.00023958,2]
[400590588,1767736238656,-6269.9376992,0.00024246,2]
[400590590,1767736238665,-5057.1702918,0.00024291,2]
[400590592,1767736238675,-138768.0595993,0.00024357,2]
[400590594,1767736238684,-254.04937272,0.00024658,5]
[400590596,1767736238694,-2051.8,0.00024781,2]
[400590598,1767736238703,-619.9067347,0.00024838,2]
[400590601,1767736238716,-2190.53543176,0.000249,3]
[400590603,1767736238725,-163.41,0.00025059,2]
[400590605,1767736238735,-1707.79145292,0.00025252,2]
[400590607,1767736238744,-11495.57013769,0.00025252,2]
[400590609,1767736238753,-1000.0,0.00025472,2]
[400590611,1767736238762,-500.0,0.00025671,2]
[400590613,1767736238771,-156.15185606,0.00026696,2]
[400590615,1767736238780,-477.82498524,0.00026731,2]
[400590617,1767736238790,-2051.8,0.0002686,2]
[400590618,1767736238799,-163.41,0.00026987,2]
[400590621,1767736238809,-3907.34,0.000271,7]
[400590622,1767736238819,-1080.15984265,0.00027242,5]
[400590625,1767736238829,-1005.60584604,0.00027242,5]
[400590626,1767736238838,-1507.76165958,0.00027242,5]
[400590629,1767736238848,-6269.9376992,0.0002738,2]
[400590631,1767736238861,-338.73249696,0.00027397,30]